[Event "Lueneburg Open-B 2019"]
[Site "Lueneburg"]
[Date "2019.08.09"]
[Round "7.14"]
[White "Ramme, Georg"]
[Black "Schencke, Guenther"]
[Result "1-0"]
[ECO "D37"]
[WhiteElo "1660"]
[BlackElo "1668"]
[Annotator "NA"]
[PlyCount "102"]
[EventDate "2019.08.03"]
[EventType "swiss"]
[EventCountry "GER"]
[SourceTitle "playchess.com"]
[Source "ChessBase"]
[SourceQuality "1"]
[TimeControl "40/5400+30:1800+30"]

1. Nf3 {[%emt 0:00:00]} Nf6 {[%emt 0:00:00]} 2. d4 {[%emt 0:00:00]} e6 {[%emt 0:00:09]} 3. c4 {[%emt 0:00:03]} d5 {[%emt 0:00:06]} 4. e3 {[%emt 0:02:37]} Be7 {[%emt 0:01:23]} 5. Nc3 {[%emt 0:00:36]} O-O {[%emt 0:00:24]} 6. a3 {[%emt 0:02:14]} a5 {[%emt 0:03:35]} 7. Be2 {[%emt 0:02:41]} b6 {[%emt 0:00:16]} 8. Ne5 {[%emt 0:06:03]} Bb7 {[%emt 0:03:37]} 9. Bf3 {[%emt 0:05:31]} Nbd7 {[%emt 0:06:51]} 10. Nxd7 {[%emt 0:04:04]} Qxd7 {[%emt 0:01:46]} 11. cxd5 {[%emt 0:01:39]} Nxd5 {[%emt 0:00:17]} 12. O-O {[%emt 0:08:07]} c5 {[%emt 0:02:07]} 13. dxc5 {[%emt 0:04:21]} Bxc5 {[%emt 0:00:16]} 14. e4 {[%emt 0:04:33]} Nf6 {[%emt 0:02:03]} 15. Bg5 {[%emt 0:05:40]} Qxd1 {[%emt 0:22:55]} 16. Rfxd1 {[%emt 0:05:22]} Rfd8 {[%emt 0:02:20]} 17. Rac1 {[%emt 0:09:22]} h6 {[%emt 0:02:17]} 18. Bxf6 {[%emt 0:00:56]} gxf6 {[%emt 0:00:02]} 19. Na4 {[%emt 0:04:03]} Rxd1+ {[%emt 0:07:46]} 20. Rxd1 {[%emt 0:00:07]} Rc8 {[%emt 0:00:40]} 21. h3 {[%emt 0:04:04]} Kf8 {[%emt 0:16:51]} 22. Kf1 {[%emt 0:04:51]} Ke7 {[%emt 0:00:26]} 23. Ke1 {[%emt 0:00:47]} b5 {[%emt 0:01:12]} 24. Nxc5 {[%emt 0:00:59]} Rxc5 {[%emt 0:00:04]} 25. Kd2 {[%emt 0:02:47]} f5 {[%emt 0:01:05]} 26. Ke3 {[%emt 0:03:03]} fxe4 {[%emt 0:01:15]} 27. Be2 {[%emt 0:00:51]} b4 {[%emt 0:02:41]} 28. axb4 {[%emt 0:00:19]} axb4 {[%emt 0:00:03]} 29. Rd4 {[%emt 0:01:33]} b3 {[%emt 0:00:51]} 30. Rb4 {[%emt 0:02:21]} Bd5 {[%emt 0:01:26]} 31. Bd1 {[%emt 0:00:40]} f5 {[%emt 0:06:51]} 32. g3 {[%emt 0:01:17]} Kf6 {[%emt 0:03:28]} 33. Bxb3 {[%emt 0:02:09]} Bxb3 {[%emt 0:01:13]} 34. Rxb3 {[%emt 0:00:02]} Rc1 {[%emt 0:00:16]} 35. Rb6 {[%emt 0:02:12]} Ke5 {[%emt 0:10:58]} 36. Rb5+ {[%emt 0:12:06]} Kf6 {[%emt 0:00:00]} 37. Kd2 {[%emt 0:00:00]} Rf1 {[%emt 0:00:00]} 38. Ke2 {[%emt 0:00:00]} Rc1 {[%emt 0:00:00]} 39. Rb3 {[%emt 0:00:00]} Rc2+ {[%emt 0:00:00]} 40. Kf1 {[%emt 0:00:00]} Rc1+ {[%emt 0:00:00]} 41. Ke2 {[%emt 0:26:32]} Rc2+ {[%emt 0:26:50]} 42. Ke3 {[%emt 0:00:24]} Rc1 {[%emt 0:00:23]} 43. Rb8 {[%emt 0:00:00]} Re1+ {[%emt 0:00:00]} 44. Kd2 {[%emt 0:00:00]} Rf1 {[%emt 0:00:00]} 45. Ke2 {[%emt 0:00:00]} Rc1 {[%emt 0:00:00]} 46. h4 {[%emt 0:00:00]} Rc2+ {[%emt 0:00:00]} 47. Ke3 {[%emt 0:00:00]} Rc1 {[%emt 0:00:00]} 48. b4 {[%emt 0:00:00]} Rc3+ {[%emt 0:00:00]} 49. Kd2 {[%emt 0:00:00]} Ra3 {[%emt 0:00:00]} 50. Rc8 {[%emt 0:00:00]} Rb3 {[%emt 0:00:00]} 51. Rb8 {[%emt 0:00:00]} Rb2+ {[%emt 0:00:00]} 1-0

[Event "Lueneburg Open-B 2019"]
[Site "Lueneburg"]
[Date "2019.08.09"]
[Round "7.15"]
[White "Schulze, Tim"]
[Black "Mi, Gufeng"]
[Result "0-1"]
[ECO "D02"]
[WhiteElo "1481"]
[BlackElo "1564"]
[Annotator "NA"]
[PlyCount "124"]
[EventDate "2019.08.03"]
[EventType "swiss"]
[EventCountry "GER"]
[SourceTitle "playchess.com"]
[Source "ChessBase"]
[SourceQuality "1"]
[TimeControl "40/5400+30:1800+30"]

1. d4 {[%emt 0:00:00]} d5 {[%emt 0:06:11]} 2. Nf3 {[%emt 0:00:00]} Bf5 {[%emt 0:00:55]} 3. g3 {[%emt 0:00:00]} h6 {[%emt 0:00:34]} 4. Bg2 {[%emt 0:00:00]} e6 {[%emt 0:00:38]} 5. c4 {[%emt 0:00:04]} c6 {[%emt 0:00:24]} 6. Qb3 {[%emt 0:00:06]} Qc8 {[%emt 0:00:49]} 7. c5 {[%emt 0:00:54]} Nd7 {[%emt 0:00:42]} 8. Nc3 {[%emt 0:00:13]} Ngf6 {[%emt 0:01:06]} 9. O-O {[%emt 0:00:00]} Be7 {[%emt 0:00:50]} 10. Re1 {[%emt 0:00:46]} O-O {[%emt 0:00:23]} 11. a4 {[%emt 0:03:33]} Re8 {[%emt 0:01:10]} 12. a5 {[%emt 0:00:41]} a6 {[%emt 0:00:18]} 13. Bf4 {[%emt 0:01:57]} g5 {[%emt 0:01:03]} 14. Be3 {[%emt 0:07:05]} Ne4 {[%emt 0:02:31]} 15. Nd2 {[%emt 0:03:55]} Ndf6 {[%emt 0:03:08]} 16. Na4 {[%emt 0:04:43]} Qd8 {[%emt 0:02:10]} 17. Qxb7 {[%emt 0:04:01]} Nxd2 {[%emt 0:01:13]} 18. Bxd2 {[%emt 0:00:11]} Ne4 {[%emt 0:01:00]} 19. Qb4 {[%emt 0:04:52]} Rb8 {[%emt 0:02:19]} 20. Nb6 {[%emt 0:00:09]} Bg6 {[%emt 0:04:54]} 21. f3 {[%emt 0:02:57]} Nf6 {[%emt 0:01:23]} 22. Qc3 {[%emt 0:01:40]} Nh7 {[%emt 0:01:43]} 23. e3 {[%emt 0:01:40]} f5 {[%emt 0:01:24]} 24. Bf1 {[%emt 0:00:15]} g4 {[%emt 0:04:03]} 25. f4 {[%emt 0:00:43]} Nf6 {[%emt 0:01:50]} 26. Bxa6 {[%emt 0:02:40]} Ne4 {[%emt 0:00:14]} 27. Qc2 {[%emt 0:01:49]} h5 {[%emt 0:11:59]} 28. Bd3 {[%emt 0:01:59]} Rb7 {[%emt 0:04:28]} 29. a6 {[%emt 0:02:12]} Ra7 {[%emt 0:00:13]} 30. Ra3 {[%emt 0:00:52]} h4 {[%emt 0:04:21]} 31. Bxe4 {[%emt 0:00:21]} fxe4 {[%emt 0:02:56]} 32. Qd1 {[%emt 0:04:45]} Bf5 {[%emt 0:00:38]} 33. Qe2 {[%emt 0:00:12]} hxg3 {[%emt 0:05:44]} 34. hxg3 {[%emt 0:00:09]} Kf7 {[%emt 0:01:40]} 35. Qg2 {[%emt 0:07:58]} Rh8 {[%emt 0:03:39]} 36. Kf2 {[%emt 0:00:34]} Rh3 {[%emt 0:02:21]} 37. Rh1 {[%emt 0:01:14]} Qh8 {[%emt 0:03:09]} 38. Rxh3 {[%emt 0:01:05]} gxh3 {[%emt 0:01:45]} 39. Qh2 {[%emt 0:00:28]} Qh5 {[%emt 0:03:55]} 40. Nc8 {[%emt 0:26:59]} Qf3+ {[%emt 0:06:34]} 41. Ke1 {[%emt 0:31:19]} Bg4 {[%emt 0:30:59]} 42. Nxa7 {[%emt 0:05:56]} Qd1+ {[%emt 0:01:10]} 43. Kf2 {[%emt 0:02:13]} Qxd2+ {[%emt 0:00:44]} 44. Kg1 {[%emt 0:00:04]} Qc1+ {[%emt 0:01:03]} 45. Kf2 {[%emt 0:00:37]} Qxb2+ {[%emt 0:00:39]} 46. Kg1 {[%emt 0:00:10]} Qxa3 {[%emt 0:00:58]} 47. Nxc6 {[%emt 0:00:51]} Qxe3+ {[%emt 0:03:28]} 48. Kf1 {[%emt 0:00:53]} Qc1+ {[%emt 0:02:04]} 49. Kf2 {[%emt 0:00:56]} Qb2+ {[%emt 0:00:57]} 50. Kg1 {[%emt 0:00:16]} Qa1+ {[%emt 0:00:29]} 51. Kf2 {[%emt 0:00:11]} Qxa6 {[%emt 0:00:43]} 52. Ne5+ {[%emt 0:00:10]} Ke8 {[%emt 0:00:00]} 53. Nxg4 {[%emt 0:00:00]} Qa2+ {[%emt 0:00:00]} 54. Kg1 {[%emt 0:00:00]} Qa1+ {[%emt 0:00:00]} 55. Kf2 {[%emt 0:00:00]} Qxd4+ {[%emt 0:00:00]} 56. Ke2 {[%emt 0:00:00]} Qd3+ {[%emt 0:00:00]} 57. Ke1 {[%emt 0:00:00]} Qb1+ {[%emt 0:00:00]} 58. Kd2 {[%emt 0:00:00]} Qb4+ {[%emt 0:00:00]} 59. Ke2 {[%emt 0:00:00]} Qc4+ {[%emt 0:00:00]} 60. Kd1 {[%emt 0:00:00]} Qb3+ {[%emt 0:00:00]} 61. Kd2 {[%emt 0:00:00]} Qb2+ {[%emt 0:00:00]} 62. Ke3 {[%emt 0:00:00]} Bxc5# {[%emt 0:11:29] Kd2} 0-1

[Event "Lueneburg Open-B 2019"]
[Site "Lueneburg"]
[Date "2019.08.09"]
[Round "7.16"]
[White "Thomas, Vincent"]
[Black "Rempe, Mieke"]
[Result "1-0"]
[ECO "E10"]
[WhiteElo "1975"]
[BlackElo "1558"]
[Annotator "NA RC"]
[PlyCount "57"]
[EventDate "2019.08.03"]
[EventType "swiss"]
[EventCountry "GER"]
[SourceTitle "playchess.com"]
[Source "ChessBase"]
[SourceQuality "1"]
[TimeControl "40/5400+30:1800+30"]

1. d4 {[%emt 0:00:19]} Nf6 {[%emt 0:00:00]} 2. c4 {[%emt 0:01:12]} e6 {[%emt 0:00:14]} 3. Nf3 {[%emt 0:02:50]} d6 {[%emt 0:01:45]} 4. Bg5 {[%emt 0:02:06]} Nbd7 {[%emt 0:01:21]} 5. Nc3 {[%emt 0:02:03]} Be7 {[%emt 0:06:49]} 6. e3 {[%emt 0:03:27]} O-O {[%emt 0:14:23]} 7. Be2 {[%emt 0:05:26]} Re8 {[%emt 0:03:57]} 8. O-O {[%emt 0:03:59]} Nf8 {[%emt 0:01:34]} 9. a3 {[%emt 0:02:27]} Ng6 {[%emt 0:01:22]} 10. Nh4 {[%emt 0:04:58]} Nxh4 {[%emt 0:11:09]} 11. Bxh4 {[%emt 0:00:36]} Ne4 {[%emt 0:05:22]} 12. Bxe7 {[%emt 0:01:37]} Nxc3 {[%emt 0:00:06]} 13. Bxd8 {[%emt 0:00:16]} Nxd1 {[%emt 0:00:07]} 14. Bxc7 {[%emt 0:02:08]} Nxb2 {[%emt 0:00:05]} 15. Bxd6 {[%emt 0:01:24]} Na4 {[%emt 0:04:50]} 16. Rfc1 {[%emt 0:08:38]} Nb6 {[%emt 0:07:48]} 17. c5 {[%emt 0:02:32]} Nd5 {[%emt 0:02:11]} 18. Bf3 {[%emt 0:04:10]} Bd7 {[%emt 0:03:55]} 19. Rab1 {[%emt 0:03:30]} Bc6 {[%emt 0:00:35]} 20. a4 {[%emt 0:05:32]} h6 {[%emt 0:08:27]} 21. a5 {[%emt 0:00:46]} a6 {[%emt 0:02:18]} 22. Bd1 {[%emt 0:03:05]} Red8 {[%emt 0:05:38]} 23. Ra1 {[%emt 0:03:25]} Rdc8 {[%emt 0:02:52]} 24. Ba4 {[%emt 0:04:10]} Bxa4 {[%emt 0:00:26]} 25. Rxa4 {[%emt 0:00:17]} Rc6 {[%emt 0:00:32]} 26. Raa1 {[%emt 0:03:52]} Rac8 {[%emt 0:01:26]} 27. h3 {[%emt 0:04:04]} Nf6 {[%emt 0:03:15]} 28. Rcb1 {[%emt 0:03:11]} Ne4 {[%emt 0:03:44]} 29. Bh2 {[%emt 0:02:57]} 1-0

[Event "Lueneburg Open-B 2019"]
[Site "Lueneburg"]
[Date "2019.08.09"]
[Round "7.17"]
[White "Hotz, Herbert"]
[Black "Rennkamp, David"]
[Result "1/2-1/2"]
[ECO "A25"]
[WhiteElo "1547"]
[BlackElo "1355"]
[Annotator "NA"]
[PlyCount "109"]
[EventDate "2019.08.03"]
[EventType "swiss"]
[EventCountry "GER"]
[SourceTitle "playchess.com"]
[Source "ChessBase"]
[SourceQuality "1"]
[TimeControl "40/5400+30:1800+30"]

1. c4 {[%emt 0:00:00]} e5 {[%emt 0:00:00]} 2. g3 {[%emt 0:00:00]} Nc6 {[%emt 0:00:00]} 3. Nc3 {[%emt 0:00:01]} Bc5 {[%emt 0:00:01]} 4. Bg2 {[%emt 0:00:12]} d6 {[%emt 0:00:13]} 5. e3 {[%emt 0:00:44]} Nf6 {[%emt 0:00:19]} 6. Nge2 {[%emt 0:00:33]} O-O {[%emt 0:01:37]} 7. O-O {[%emt 0:00:19]} Bf5 {[%emt 0:02:02]} 8. d4 {[%emt 0:03:17]} exd4 {[%emt 0:00:26]} 9. exd4 {[%emt 0:01:13]} Bb6 {[%emt 0:00:27]} 10. h3 {[%emt 0:02:12]} Rb8 {[%emt 0:02:09]} 11. Na4 {[%emt 0:10:49]} Nd7 {[%emt 0:07:57]} 12. Nxb6 {[%emt 0:08:54]} Nxb6 {[%emt 0:02:15]} 13. g4 {[%emt 0:07:03]} Bg6 {[%emt 0:01:35]} 14. Nf4 {[%emt 0:04:20]} Nxc4 {[%emt 0:04:55]} 15. Nxg6 {[%emt 0:00:25]} hxg6 {[%emt 0:01:34]} 16. b3 {[%emt 0:01:32]} Nb6 {[%emt 0:02:33]} 17. Bb2 {[%emt 0:00:50]} d5 {[%emt 0:01:50]} 18. f4 {[%emt 0:03:28]} Ne7 {[%emt 0:03:20]} 19. h4 {[%emt 0:06:08]} Re8 {[%emt 0:07:18]} 20. f5 {[%emt 0:04:41]} gxf5 {[%emt 0:01:53]} 21. gxf5 {[%emt 0:00:21]} f6 {[%emt 0:01:27]} 22. Qg4 {[%emt 0:01:06]} Nec8 {[%emt 0:04:34]} 23. Qg6 {[%emt 0:05:31]} Nd6 {[%emt 0:04:10]} 24. h5 {[%emt 0:07:17]} Qe7 {[%emt 0:02:40]} 25. Ba3 {[%emt 0:11:37]} Qf7 {[%emt 0:01:27]} 26. Rf4 {[%emt 0:07:27]} Qxg6 {[%emt 0:02:01]} 27. hxg6 {[%emt 0:00:18]} Ne4 {[%emt 0:03:54]} 28. Bxe4 {[%emt 0:03:05]} Rxe4 {[%emt 0:00:38]} 29. Rxe4 {[%emt 0:00:24]} dxe4 {[%emt 0:00:10]} 30. Kf2 {[%emt 0:01:42]} c6 {[%emt 0:01:07]} 31. Bc5 {[%emt 0:01:43]} Re8 {[%emt 0:07:03]} 32. Bxb6 {[%emt 0:00:38]} axb6 {[%emt 0:00:01]} 33. Ke3 {[%emt 0:00:26]} Kf8 {[%emt 0:00:11]} 34. Rh1 {[%emt 0:00:26]} Kg8 {[%emt 0:00:24]} 35. Rh4 {[%emt 0:00:27]} Re7 {[%emt 0:00:15]} 36. Rxe4 {[%emt 0:00:33]} Rxe4+ {[%emt 0:00:06]} 37. Kxe4 {[%emt 0:00:10]} Kf8 {[%emt 0:00:05]} 38. a4 {[%emt 0:01:26]} Ke7 {[%emt 0:00:36]} 39. b4 {[%emt 0:01:15]} Kd6 {[%emt 0:00:46]} 40. Ke3 {[%emt 0:01:40]} Kd5 {[%emt 0:02:09]} 41. Kd3 {[%emt 0:30:20]} c5 {[%emt 0:30:36]} 42. dxc5 {[%emt 0:03:35]} bxc5 {[%emt 0:00:34]} 43. b5 {[%emt 0:00:00]} b6 {[%emt 0:00:00]} 44. Kc3 {[%emt 0:00:00]} Kd6 {[%emt 0:00:00]} 45. Kc4 {[%emt 0:00:00]} Kc7 {[%emt 0:00:00]} 46. Kd5 {[%emt 0:00:00]} Kd7 {[%emt 0:00:00]} 47. Kc4 {[%emt 0:00:00]} Kd6 {[%emt 0:00:00]} 48. Kc3 {[%emt 0:00:00]} Kd5 {[%emt 0:00:00]} 49. Kd3 {[%emt 0:00:00]} c4+ {[%emt 0:00:00]} 50. Kd2 {[%emt 0:00:00]} Kd6 {[%emt 0:00:00]} 51. Kc2 {[%emt 0:00:00]} Kc5 {[%emt 0:00:00]} 52. Kc3 {[%emt 0:00:00]} Kd5 {[%emt 0:00:00]} 53. Kd2 {[%emt 0:00:00]} Kd6 {[%emt 0:00:00]} 54. Kc2 {[%emt 0:00:00]} Kd5 {[%emt 0:00:00]} 55. Kd2 {[%emt 0:00:00]} 1/2-1/2

[Event "Lueneburg Open-B 2019"]
[Site "Lueneburg"]
[Date "2019.08.09"]
[Round "7.18"]
[White "Rothenberg, Anke"]
[Black "Vogel, Elisabeth"]
[Result "0-1"]
[ECO "D05"]
[WhiteElo "1467"]
[BlackElo "1277"]
[Annotator "NA RC"]
[PlyCount "58"]
[EventDate "2019.08.03"]
[EventType "swiss"]
[EventCountry "GER"]
[SourceTitle "playchess.com"]
[Source "ChessBase"]
[SourceQuality "1"]
[TimeControl "40/5400+30:1800+30"]

1. d4 {[%emt 0:00:00]} d5 {[%emt 0:00:00]} 2. Nf3 {[%emt 0:00:00]} Nf6 {[%emt 0:00:03]} 3. e3 {[%emt 0:00:00]} e6 {[%emt 0:00:41]} 4. Bd3 {[%emt 0:00:16]} c5 {[%emt 0:03:17]} 5. c3 {[%emt 0:00:13]} Nc6 {[%emt 0:00:55]} 6. Nbd2 {[%emt 0:00:40]} Be7 {[%emt 0:02:23]} 7. O-O {[%emt 0:00:35]} O-O {[%emt 0:01:40]} 8. dxc5 {[%emt 0:00:42]} Bxc5 {[%emt 0:00:25]} 9. Re1 {[%emt 0:02:05]} b6 {[%emt 0:03:32]} 10. e4 {[%emt 0:01:25]} dxe4 {[%emt 0:01:05]} 11. Nxe4 {[%emt 0:00:47]} Nxe4 {[%emt 0:01:26]} 12. Rxe4 {[%emt 0:04:46]} Bb7 {[%emt 0:01:10]} 13. Bg5 {[%emt 0:10:27]} Be7 {[%emt 0:01:40]} 14. Bxe7 {[%emt 1:15:04]} Qxe7 {[%emt 0:02:24]} 15. Re3 {[%emt 0:00:00]} Rfd8 {[%emt 0:02:41]} 16. Qc2 {[%emt 0:00:00]} h6 {[%emt 0:01:38]} 17. Rae1 {[%emt 0:00:00]} Rac8 {[%emt 0:01:54]} 18. Qe2 {[%emt 0:00:00]} Rd6 {[%emt 0:06:53]} 19. Bc2 {[%emt 0:00:00]} Rcd8 {[%emt 0:04:23]} 20. g3 {[%emt 0:00:00]} Qc7 {[%emt 0:06:30]} 21. Bd3 {[%emt 0:00:00]} Ne7 {[%emt 0:03:15]} 22. Nd4 {[%emt 0:00:00]} Qb8 {[%emt 0:03:43]} 23. Be4 {[%emt 0:00:00]} Nd5 {[%emt 0:02:31]} 24. Rd3 {[%emt 0:00:00]} Ba6 {[%emt 0:02:22]} 25. Qe3 {[%emt 0:00:00]} Bxd3 {[%emt 0:00:31]} 26. Bxd5 {[%emt 0:06:00]} Rxd5 {[%emt 0:45:58]} 27. Qxd3 {[%emt 0:00:00]} e5 {[%emt 0:00:00]} 28. Re4 {[%emt 0:00:00]} exd4 {[%emt 0:00:00]} 29. cxd4 {[%emt 0:00:00]} Qd6 {[%emt 0:00:00]} 0-1

[Event "Lueneburg Open-B 2019"]
[Site "Lueneburg"]
[Date "2019.08.10"]
[Round "8.1"]
[White "Wiese, Uwe"]
[Black "Suliga, Eckhard"]
[Result "1-0"]
[ECO "E21"]
[WhiteElo "1737"]
[BlackElo "1682"]
[Annotator "NA"]
[PlyCount "53"]
[EventDate "2019.08.03"]
[EventType "swiss"]
[EventCountry "GER"]
[SourceTitle "playchess.com"]
[Source "ChessBase"]
[SourceQuality "1"]
[TimeControl "40/5400+30:1800+30"]

1. d4 {[%emt 0:00:00]} Nf6 {[%emt 0:00:00]} 2. Nf3 {[%emt 0:00:00]} b6 {[%emt 0:00:26]} 3. c4 {[%emt 0:00:14]} e6 {[%emt 0:00:11]} 4. Nc3 {[%emt 0:00:31]} Bb4 {[%emt 0:00:12]} 5. Bd2 {[%emt 0:03:18]} Bb7 {[%emt 0:04:58]} 6. e3 {[%emt 0:00:20]} O-O {[%emt 0:02:29]} 7. Be2 {[%emt 0:00:53]} Nc6 {[%emt 0:14:05]} 8. O-O {[%emt 0:00:59]} Bxc3 {[%emt 0:00:51]} 9. Bxc3 {[%emt 0:00:50]} Ne4 {[%emt 0:00:20]} 10. Qc2 {[%emt 0:01:08]} Nxc3 {[%emt 0:00:22]} 11. Qxc3 {[%emt 0:00:47]} Qf6 {[%emt 0:06:53]} 12. Rac1 {[%emt 0:04:38]} Rac8 {[%emt 0:01:43]} 13. b4 {[%emt 0:01:53]} Ne7 {[%emt 0:13:16]} 14. Qa3 {[%emt 0:09:05]} a5 {[%emt 0:03:24]} 15. bxa5 {[%emt 0:02:50]} Ra8 {[%emt 0:00:02]} 16. Qb3 {[%emt 0:02:40]} Rxa5 {[%emt 0:01:21]} 17. Ne5 {[%emt 0:15:16]} Rd8 {[%emt 0:01:59]} 18. c5 {[%emt 0:05:48]} Bd5 {[%emt 0:03:12]} 19. Qb4 {[%emt 0:06:34]} Rxa2 {[%emt 0:04:49]} 20. Bc4 {[%emt 0:04:00]} bxc5 {[%emt 0:02:08]} 21. Qxc5 {[%emt 0:02:17]} Bxc4 {[%emt 0:07:01]} 22. Qxc4 {[%emt 0:00:42]} Ra7 {[%emt 0:06:14]} 23. Ra1 {[%emt 0:01:44]} Rxa1 {[%emt 0:03:19]} 24. Rxa1 {[%emt 0:00:09]} c6 {[%emt 0:00:58]} 25. Ra7 {[%emt 0:05:27]} d5 {[%emt 0:04:51]} 26. Qc5 {[%emt 0:01:43]} Rc8 {[%emt 0:02:11]} 27. Qxe7 {[%emt 0:00:16]} 1-0

[Event "Lueneburg Open-B 2019"]
[Site "Lueneburg"]
[Date "2019.08.10"]
[Round "8.2"]
[White "Gerdau, Niklas"]
[Black "Thomas, Jeremy"]
[Result "1-0"]
[ECO "E62"]
[WhiteElo "1704"]
[BlackElo "1717"]
[Annotator "NA"]
[PlyCount "59"]
[EventDate "2019.08.03"]
[EventType "swiss"]
[EventCountry "GER"]
[SourceTitle "playchess.com"]
[Source "ChessBase"]
[SourceQuality "1"]
[TimeControl "40/5400+30:1800+30"]

1. d4 {[%emt 0:00:00]} Nf6 {[%emt 0:01:17]} 2. c4 {[%emt 0:00:00]} g6 {[%emt 0:00:22]} 3. Nc3 {[%emt 0:00:05]} Bg7 {[%emt 0:00:06]} 4. g3 {[%emt 0:00:52]} d6 {[%emt 0:01:30]} 5. Bg2 {[%emt 0:00:28]} O-O {[%emt 0:00:15]} 6. Nf3 {[%emt 0:01:27]} Na6 {[%emt 0:02:47]} 7. Qb3 {[%emt 0:01:07]} c5 {[%emt 0:00:47]} 8. e3 {[%emt 0:00:29]} Nc7 {[%emt 0:09:06]} 9. O-O {[%emt 0:01:23]} a6 {[%emt 0:00:46]} 10. Rd1 {[%emt 0:00:36]} Ne6 {[%emt 0:01:04]} 11. Na4 {[%emt 0:01:45]} b5 {[%emt 0:01:17]} 12. cxb5 {[%emt 0:00:36]} axb5 {[%emt 0:02:52]} 13. Nc3 {[%emt 0:00:38]} b4 {[%emt 0:01:43]} 14. Ne2 {[%emt 0:01:14]} Ba6 {[%emt 0:01:46]} 15. Nf4 {[%emt 0:00:44]} Nxf4 {[%emt 0:02:33]} 16. exf4 {[%emt 0:02:20]} Qb6 {[%emt 0:06:26]} 17. dxc5 {[%emt 0:01:58]} Qxc5 {[%emt 0:01:16]} 18. Be3 {[%emt 0:01:25]} Qc4 {[%emt 0:01:24]} 19. Nd4 {[%emt 0:09:11]} Rac8 {[%emt 0:07:32]} 20. Qxc4 {[%emt 0:01:10]} Bxc4 {[%emt 0:03:16]} 21. Nc6 {[%emt 0:00:47]} Rc7 {[%emt 0:00:50]} 22. Nxb4 {[%emt 0:16:06]} Rb8 {[%emt 0:52:05]} 23. a3 {[%emt 0:05:00]} Nd7 {[%emt 0:00:00]} 24. Rac1 {[%emt 0:06:55]} Bxb2 {[%emt 0:00:00]} 25. Rc2 {[%emt 0:00:15]} Bxa3 {[%emt 0:00:00]} 26. Na6 {[%emt 0:00:16]} Bxa6 {[%emt 0:00:00]} 27. Rxc7 {[%emt 0:00:17]} Nc5 {[%emt 0:00:00]} 28. Ra1 {[%emt 0:00:36]} Kf8 {[%emt 0:00:00]} 29. h3 {[%emt 0:00:17]} Ne6 {[%emt 0:00:00]} 30. Ra7 {[%emt 0:00:36]} 1-0

[Event "Lueneburg Open-B 2019"]
[Site "Lueneburg"]
[Date "2019.08.10"]
[Round "8.3"]
[White "Rewerts, Ingo"]
[Black "Ische, Helmut"]
[Result "1/2-1/2"]
[ECO "D03"]
[WhiteElo "1792"]
[BlackElo "1662"]
[Annotator "NA"]
[PlyCount "124"]
[EventDate "2019.08.03"]
[EventType "swiss"]
[EventCountry "GER"]
[SourceTitle "playchess.com"]
[Source "ChessBase"]
[SourceQuality "1"]
[TimeControl "40/5400+30:1800+30"]

1. d4 {[%emt 0:00:00]} Nf6 {[%emt 0:00:00]} 2. Nf3 {[%emt 0:00:00]} d5 {[%emt 0:00:00]} 3. c3 {[%emt 0:00:01]} Bf5 {[%emt 0:02:10]} 4. Bg5 {[%emt 0:00:16]} Ne4 {[%emt 0:01:11]} 5. h4 {[%emt 0:00:09]} h6 {[%emt 0:03:15]} 6. Bf4 {[%emt 0:00:06]} e6 {[%emt 0:01:47]} 7. Qb3 {[%emt 0:01:56]} b6 {[%emt 0:05:54]} 8. e3 {[%emt 0:01:39]} Bd6 {[%emt 0:02:21]} 9. Ne5 {[%emt 0:00:57]} O-O {[%emt 0:02:15]} 10. f3 {[%emt 0:03:49]} Nf6 {[%emt 0:00:54]} 11. g4 {[%emt 0:00:30]} Bxb1 {[%emt 0:07:08]} 12. Rxb1 {[%emt 0:00:19]} Nfd7 {[%emt 0:07:00]} 13. g5 {[%emt 0:08:27]} Bxe5 {[%emt 0:00:57]} 14. dxe5 {[%emt 0:00:41]} h5 {[%emt 0:00:35]} 15. Bg3 {[%emt 0:04:29]} Nc6 {[%emt 0:03:20]} 16. f4 {[%emt 0:01:04]} Ne7 {[%emt 0:03:37]} 17. Bd3 {[%emt 0:00:54]} Nc5 {[%emt 0:02:21]} 18. Qc2 {[%emt 0:00:26]} Nxd3+ {[%emt 0:00:26]} 19. Qxd3 {[%emt 0:00:09]} g6 {[%emt 0:00:35]} 20. Rd1 {[%emt 0:09:43]} Qd7 {[%emt 0:03:43]} 21. Rh2 {[%emt 0:11:15]} Rfd8 {[%emt 0:05:39]} 22. Rhd2 {[%emt 0:04:31]} Kg7 {[%emt 0:06:02]} 23. Qa6 {[%emt 0:03:53]} Qc6 {[%emt 0:07:24]} 24. e4 {[%emt 0:12:10]} Qe8 {[%emt 0:09:33]} 25. Qb7 {[%emt 0:05:36]} dxe4 {[%emt 0:04:09]} 26. Qxc7 {[%emt 0:03:29]} Rxd2 {[%emt 0:00:29]} 27. Rxd2 {[%emt 0:00:02]} Nf5 {[%emt 0:08:47]} 28. Bh2 {[%emt 0:01:38]} Nxh4 {[%emt 0:01:15]} 29. Kd1 {[%emt 0:16:21]} Nf3 {[%emt 0:03:26]} 30. Re2 {[%emt 0:00:45]} Rd8+ {[%emt 0:00:43]} 31. Kc1 {[%emt 0:00:15]} Rd3 {[%emt 0:01:49]} 32. Qc4 {[%emt 0:02:20]} Qd7 {[%emt 0:01:34]} 33. Qxe4 {[%emt 0:00:44]} Rd1+ {[%emt 0:01:19]} 34. Kc2 {[%emt 0:00:03]} Rd2+ {[%emt 0:00:23]} 35. Kc1 {[%emt 0:00:58]} Rxe2 {[%emt 0:01:28]} 36. Qxe2 {[%emt 0:00:06]} Nxh2 {[%emt 0:00:05]} 37. Qxh2 {[%emt 0:00:07]} Qa4 {[%emt 0:01:15]} 38. f5 {[%emt 0:01:43]} exf5 {[%emt 0:01:52]} 39. e6 {[%emt 0:00:25]} Qe4 {[%emt 0:00:58]} 40. exf7 {[%emt 0:00:44]} Kxf7 {[%emt 0:00:25]} 41. Qc7+ {[%emt 0:30:21]} Qe7 {[%emt 0:30:15]} 42. Qc4+ {[%emt 0:00:17]} Kg7 {[%emt 0:01:10]} 43. Qd4+ {[%emt 0:01:47]} Kh7 {[%emt 0:01:02]} 44. Qd2 {[%emt 0:00:12]} Qf7 {[%emt 0:00:00]} 45. Qf4 {[%emt 0:00:00]} a6 {[%emt 0:00:00]} 46. b3 {[%emt 0:00:00]} Qe7 {[%emt 0:00:00]} 47. Kd2 {[%emt 0:00:00]} Qb7 {[%emt 0:00:00]} 48. a4 {[%emt 0:00:00]} Qd5+ {[%emt 0:00:00]} 49. Ke3 {[%emt 0:00:00]} Qe4+ {[%emt 0:00:00]} 50. Qxe4 {[%emt 0:00:00]} fxe4 {[%emt 0:00:00]} 51. Kxe4 {[%emt 0:00:00]} Kg7 {[%emt 0:00:00]} 52. b4 {[%emt 0:00:00]} Kf7 {[%emt 0:00:00]} 53. Ke5 {[%emt 0:00:00]} Ke7 {[%emt 0:00:00]} 54. c4 {[%emt 0:00:00]} Kd7 {[%emt 0:00:00]} 55. Kd5 {[%emt 0:00:00]} Kc7 {[%emt 0:00:00]} 56. Ke5 {[%emt 0:00:00]} Kc6 {[%emt 0:00:00]} 57. Kd4 {[%emt 0:00:00]} b5 {[%emt 0:00:00]} 58. axb5+ {[%emt 0:00:00]} axb5 {[%emt 0:00:00]} 59. c5 {[%emt 0:00:00]} Kc7 {[%emt 0:08:59]} 60. Kd5 {[%emt 0:14:43]} Kc8 {[%emt 0:00:30]} 61. Ke5 {[%emt 0:00:30]} Kc7 {[%emt 0:00:30]} 62. Kd5 {[%emt 0:00:30]} Kc8 1/2-1/2